[Event "4NCL 2023-2024"]
[Site "Daventry"]
[Date "2024.05.05"]
[Round "10.39"]
[White "Kazarian, Anna-Maja"]
[Black "Roberson, Peter T"]
[Result "0-1"]
[ECO "B59"]
[WhiteElo "2182"]
[BlackElo "2426"]
[Annotator "TA"]
[PlyCount "50"]
[EventDate "2023.11.11"]
[EventType "team-tourn"]
[EventCountry "ENG"]
[SourceTitle "playchess.com"]
[Source "ChessBase"]
[SourceQuality "1"]
[TimeControl "40/6000+30:3000+30"]

{[%evp 22,50,-43,-81,-75,-282,-260,-247,-274,-273,-257,-308,-254,-302,-291,-398,-400,-405,-388,-469,-452,-461,-457,-580,-594,-960,-960,-1302,-1301,-29997,-29998]} 1. e4 {[%emt 0:00:03]} c5 {[%emt 0:00:12]} 2. Nf3 {[%emt 0:00:08]} d6 {[%emt 0:00:07]} 3. d4 {[%emt 0:00:04]} cxd4 {[%emt 0:00:04]} 4. Nxd4 {[%emt 0:00:04]} Nf6 {[%emt 0:00:06]} 5. Nc3 {[%emt 0:00:04]} Nc6 {[%emt 0:00:05]} 6. Be2 {[%emt 0:04:08]} e5 {[%emt 0:02:00]} 7. Nb3 {[%emt 0:01:02]} Be7 {[%emt 0:00:19]} 8. Be3 {[%emt 0:01:59]} O-O {[%emt 0:06:06]} 9. O-O {[%emt 0:04:06]} Be6 {[%emt 0:03:47]} 10. Qd2 {[%emt 0:10:10]} a5 {[%emt 0:05:23]} 11. a4 {[%emt 0:03:11]} Nb4 {[%emt 0:01:56]} 12. f4 {[%emt 0:11:35] [#]} Rc8 $1 {[%emt 0:07:13]} 13. Rad1 $2 {[%emt 0:09:37] [#]} (13. Bf3 $17) 13... Rxc3 $1 $19 {[%emt 0:15:43][%mdl 512]} 14. bxc3 {[%emt 0:02:34]} Nxe4 {[%emt 0:00:11] Black is clearly better.} 15. Qc1 {[%emt 0:05:53]} Nxc3 {[%emt 0:00:42]} 16. Bb5 {[%emt 0:15:32]} Nxd1 {[%emt 0:04:00]} 17. Qxd1 {[%emt 0:01:25]} Qc7 {[%emt 0:08:59]} 18. Bd2 {[%emt 0:04:42]} Nxc2 {[%emt 0:03:27]} ({Not} 18... Qxc2 19. Nxa5 Qb2 20. f5 $19) 19. Nxa5 {[%emt 0:01:03]} Nd4 {[%emt 0:00:31] Dodges Qf3} 20. Qb1 {[%emt 0:03:18]} Nxb5 {[%emt 0:07:47]} 21. Qxb5 {[%emt 0:01:07]} Qc2 {[%emt 0:03:23]} 22. Bb4 {[%emt 0:01:37]} Qe4 {[%emt 0:08:55] Threatens to win with ...Bd5.} 23. fxe5 {[%emt 0:02:13]} Bd5 {[%emt 0:01:43]} 24. Rf2 {[%emt 0:00:06]} Bh4 {[%emt 0:08:15] This pair of bishops is nice.} 25. Rd2 {[%emt 0:00:38]} Qe3+ {[%emt 0:00:37] White got outplayed after the opening.   Weighted Error Value: White=1.59/Black=0.07 (flawless) .  Loses game:     	White=1     	---        Inaccurate:     	White=3     	---        OK:         	White=3     	Black=7      Best:        	---       	Black=1} 0-1

[Event "4NCL 2023-2024"]
[Site "Daventry"]
[Date "2024.05.05"]
[Round "10.40"]
[White "Grieve, Harry"]
[Black "Josse, Mark"]
[Result "1-0"]
[ECO "C78"]
[WhiteElo "2476"]
[BlackElo "2153"]
[Annotator "TA"]
[PlyCount "121"]
[EventDate "2023.11.11"]
[EventType "team-tourn"]
[EventCountry "ENG"]
[SourceTitle "playchess.com"]
[Source "ChessBase"]
[SourceQuality "1"]
[TimeControl "40/6000+30:3000+30"]

{[%evp 19,121,16,49,50,62,54,77,55,63,65,61,69,77,69,77,59,72,72,66,47,49,47,27,23,33,10,12,12,16,0,7,-4,-8,-8,0,0,0,0,0,0,0,-27,-21,-15,-12,-35,-19,-32,-33,-34,-29,-29,-33,-62,-52,-72,-26,-28,-22,-435,-425,-431,0,-5,-1,-3,0,0,27,22,33,33,33,33,61,8,8,0,541,541,541,271,279,272,306,306,29960,29963,29972,29973,29973,29974,29974,29975,29977,29976,29976,29977,29979,29978,29978,29979,29979,29980]} 1. e4 {[%emt 0:00:01]} e5 {[%emt 0:06:31]} 2. Nf3 {[%emt 0:00:03]} Nc6 {[%emt 0:00:13]} 3. Bb5 {[%emt 0:00:04]} a6 {[%emt 0:00:10]} 4. Ba4 {[%emt 0:00:04]} Nf6 {[%emt 0:00:10]} 5. O-O {[%emt 0:00:29]} b5 {[%emt 0:00:18]} 6. Bb3 {[%emt 0:00:03]} Bc5 {[%emt 0:00:21]} 7. a4 {[%emt 0:00:04]} Bb7 {[%emt 0:00:25]} 8. c3 {[%emt 0:00:26]} d6 {[%emt 0:00:19]} 9. d4 {[%emt 0:00:05]} Bb6 {[%emt 0:00:20]} 10. Re1 {[%emt 0:00:06]} h6 {[%emt 0:01:00]} 11. Be3 $1 {[%emt 0:00:05]} O-O {[%emt 0:02:48]} 12. d5 {[%emt 0:00:40]} Na5 {[%emt 0:05:00]} 13. Bxb6 {[%emt 0:00:16] White is better.} cxb6 {[%emt 0:04:44]} 14. axb5 {[%emt 0:00:05]} axb5 {[%emt 0:00:36]} 15. Bc2 {[%emt 0:00:05]} Nc4 {[%emt 0:04:00][%csl LRa1,LRb2]} 16. Rxa8 {[%emt 0:00:05]} Qxa8 {[%emt 0:00:06]} 17. Qc1 {[%emt 0:00:03]} Qa2 {[%emt 0:05:34]} 18. b3 {[%emt 0:18:42]} Na5 {[%emt 0:00:27]} 19. Nfd2 {[%emt 0:08:52] Hoping for Na3.} Rc8 {[%emt 0:03:32][%cal Ob5b4]} 20. b4 $1 {[%emt 0:02:31]} Nc4 {[%emt 0:02:08]} 21. Bb3 {[%emt 0:01:54]} Qa6 {[%emt 0:19:26]} 22. Nf1 {[%emt 0:13:31]} Ra8 {[%emt 0:03:12]} 23. Nbd2 {[%emt 0:07:59]} Bc8 {[%emt 0:04:39]} 24. f3 {[%emt 0:04:07]} Bd7 {[%emt 0:09:56]} 25. Ne3 {[%emt 0:02:14]} Nxe3 {[%emt 0:01:58]} 26. Rxe3 {[%emt 0:00:06]} Nh5 {[%emt 0:04:29]} 27. g3 {[%emt 0:09:33]} g6 {[%emt 0:01:23]} 28. Re2 {[%emt 0:04:56]} Kg7 {[%emt 0:02:55]} 29. Nf1 {[%emt 0:05:15]} Qa1 {[%emt 0:14:07]} 30. Re1 {[%emt 0:14:15][%cal Be2e1,Be1c1,Bc1c7][%mdl 32]} Qxc1 {[%emt 0:03:45]} 31. Rxc1 {[%emt 0:00:02]} f5 {[%emt 0:02:50]} 32. Nd2 {[%emt 0:04:08]} Nf6 {[%emt 0:01:20]} 33. c4 {[%emt 0:04:29]} fxe4 {[%emt 0:00:30]} 34. fxe4 {[%emt 0:00:55]} g5 {[%emt 0:05:47]} 35. cxb5 {[%emt 0:04:34]} Bxb5 {[%emt 0:00:05]} 36. Rc7+ {[%emt 0:01:37]} Kg6 {[%emt 0:00:19]} 37. Rb7 {[%emt 0:01:04]} Ra1+ {[%emt 0:00:23]} 38. Kf2 {[%emt 0:04:45]} Ng4+ {[%emt 0:03:01]} 39. Kf3 $2 {[%emt 0:01:01][%mdl 8192]} (39. Kg2 $11) 39... Nxh2+ $19 {[%emt 0:00:27]} 40. Kg2 {[%emt 0:00:04] [#]} Nf1 {[%emt 0:00:33]} (40... Ng4 $1 $19 {Threatens to win with ...Bd3.} 41. Rxb6 Bd3 42. Rxd6+ Kh5) 41. Nxf1 $11 {[%emt 0:04:10]} Bxf1+ {[%emt 0:06:29][%mdl 4096] Endgame. KRB-KRB} 42. Kf2 {[%emt 0:00:04]} Bd3 {[%emt 0:12:38]} 43. Rxb6 {[%emt 0:08:24]} Bxe4 {[%emt 0:01:06]} 44. Rxd6+ {[%emt 0:07:10]} Kf5 {[%emt 0:08:17]} 45. Rd8 {[%emt 0:12:39]} Rb1 {[%emt 0:10:10]} 46. Rf8+ {[%emt 0:00:06]} Kg4 {[%emt 0:01:59] [#]} 47. d6 $1 {[%emt 0:04:00]} Rb2+ $1 {[%emt 0:02:57]} (47... Rxb3 48. d7 Rb2+ 49. Ke3 Rb3+ 50. Kxe4 Rxb4+ 51. Kxe5 Rb5+ 52. Ke4 Rb4+ 53. Ke3 Rb3+ 54. Kd2 Rb2+ 55. Kc3) 48. Ke1 {[%emt 0:03:38]} Rxb3 {[%emt 0:07:14][%mdl 8192] KRB-KR} (48... Bc6 $1 $11 {and Black stays safe.} 49. Be6+ Kxg3) 49. d7 $18 {[%emt 0:00:04]} Rd3 {[%emt 0:01:51]} 50. d8=Q {[%emt 0:00:06]} Rxd8 {[%emt 0:00:04]} 51. Rxd8 {[%emt 0:00:04]} Kxg3 {[%emt 0:00:08] KR-KB} 52. Rh8 {[%emt 0:01:06][%cal Ob4b5] b5! would kill now.} g4 $2 {[%emt 0:00:39]} (52... Bd3 $18 53. Kd2 (53. Rxh6 Kf4 $18) 53... e4) 53. b5 {[%emt 0:05:58][%cal Bb4b5,Bb5b6,Bb6b7][%mdl 32] White mates.} Kf4 {[%emt 0:02:04]} 54. Rxh6 {[%emt 0:03:48]} g3 {[%emt 0:00:08]} 55. b6 {[%emt 0:02:18]} Kf3 {[%emt 0:01:42]} 56. Kf1 {[%emt 0:01:07]} Ke3 {[%emt 0:00:40]} 57. Rh4 {[%emt 0:02:39]} Bf3 {[%emt 0:00:32]} 58. Rh7 {[%emt 0:00:45]} Kd2 {[%emt 0:00:30]} 59. Rd7+ {[%emt 0:00:29]} Ke3 {[%emt 0:00:23]} 60. b7 {[%emt 0:00:30]} g2+ {[%emt 0:00:05]} 61. Kg1 {[%emt 0:00:02] Quite a comeback for White.   Weighted Error Value: White=0.17 (very precise) /Black=0.39.  Loses game:     	White=1     	Black=1      Missed win:     	---       	Black=1      Mistake:       	White=1     	Black=1      Inaccurate:     	White=2     	Black=1      OK:         	White=14    	Black=15     Best:        	White=6     	Black=7      Strong:       	White=1     	Black=1} 1-0

[Event "4NCL 2023-2024"]
[Site "Daventry"]
[Date "2024.05.05"]
[Round "10.41"]
[White "Olson, Hamish"]
[Black "Claridge-Hansen, William"]
[Result "1/2-1/2"]
[ECO "E06"]
[WhiteElo "2373"]
[BlackElo "2360"]
[Annotator "TA"]
[PlyCount "91"]
[EventDate "2023.11.11"]
[EventType "team-tourn"]
[EventCountry "ENG"]
[SourceTitle "playchess.com"]
[Source "ChessBase"]
[SourceQuality "1"]
[TimeControl "40/6000+30:3000+30"]

{[%evp 17,91,13,33,19,10,29,18,16,10,16,32,15,32,20,36,27,32,34,33,27,30,23,24,21,16,14,0,-18,-9,-12,-13,-36,-37,-33,-12,-12,0,-12,-12,-27,-6,-10,-6,-10,-7,-11,-25,-26,-8,-8,-8,-8,0,0,0,0,0,0,0,0,0,0,26,26,26,26,26,26,26,26,26,26,26,0,26,0]} 1. d4 {[%emt 0:00:37]} Nf6 {[%emt 0:00:11]} 2. c4 {[%emt 0:00:08]} e6 {[%emt 0:00:24]} 3. g3 {[%emt 0:00:07]} d5 {[%emt 0:00:34]} 4. Nf3 {[%emt 0:00:09]} Be7 {[%emt 0:00:36]} 5. Bg2 {[%emt 0:00:08]} O-O {[%emt 0:00:13]} 6. O-O {[%emt 0:00:09]} c6 {[%emt 0:01:37]} 7. Qc2 {[%emt 0:03:16]} b6 {[%emt 0:00:32]} 8. Nbd2 {[%emt 0:00:23]} Bb7 {[%emt 0:01:13]} 9. e4 {[%emt 0:00:19]} Na6 {[%emt 0:01:46][%cal Bb8a6,Ba6c5,Bc5e6][%mdl 32]} 10. a3 {[%emt 0:00:56]} c5 {[%emt 0:04:49]} 11. exd5 {[%emt 0:00:41]} exd5 {[%emt 0:00:17]} 12. dxc5 {[%emt 0:00:22] The position is equal.} Nxc5 {[%emt 0:01:13]} 13. b4 {[%emt 0:00:25]} Ne6 {[%emt 0:01:24]} 14. Bb2 {[%emt 0:03:49]} Rc8 {[%emt 0:08:17]} 15. Ne5 {[%emt 0:03:28]} Qc7 {[%emt 0:07:31]} 16. Rac1 {[%emt 0:02:48]} d4 {[%emt 0:14:58]} 17. Bxb7 {[%emt 0:04:17]} Qxb7 {[%emt 0:00:10]} 18. Qf5 {[%emt 0:01:17]} g6 {[%emt 0:12:40]} 19. Qf3 {[%emt 0:02:30]} Qc7 {[%emt 0:04:52]} 20. Rfe1 {[%emt 0:02:39]} Nd7 $1 {[%emt 0:03:11]} 21. Nxd7 {[%emt 0:09:45]} Qxd7 {[%emt 0:00:06]} 22. Qd5 {[%emt 0:00:35]} Rfd8 {[%emt 0:02:46]} 23. Qxd7 {[%emt 0:01:41]} Rxd7 {[%emt 0:00:07]} 24. Nf3 {[%emt 0:02:05]} Bf6 {[%emt 0:01:30][%cal Be7f6,Bf6g7,Bg7h6][%mdl 32]} 25. Red1 {[%emt 0:02:35]} h5 {[%emt 0:12:32]} 26. h4 {[%emt 0:06:47]} Bg7 {[%emt 0:04:07]} 27. Rd3 {[%emt 0:10:24]} a5 {[%emt 0:07:04]} 28. Kf1 {[%emt 0:02:39]} axb4 {[%emt 0:01:07]} 29. axb4 {[%emt 0:02:48]} Rdc7 {[%emt 0:02:17]} 30. Nd2 {[%emt 0:03:03]} Bh6 {[%emt 0:04:20] next ...Bxd2 is good for Black.} 31. f4 {[%emt 0:01:05]} Bf8 {[%emt 0:00:38]} 32. Rb3 {[%emt 0:00:45]} Ra7 {[%emt 0:01:21]} 33. Ra1 {[%emt 0:01:21] Prevents Ra4.} Rxa1+ {[%emt 0:00:21]} 34. Bxa1 {[%emt 0:00:10]} Ra8 {[%emt 0:00:23]} 35. Bb2 {[%emt 0:00:20]} Ra4 {[%emt 0:01:16]} 36. Ba3 {[%emt 0:00:42]} Ng7 {[%emt 0:02:23]} 37. Ne4 {[%emt 0:01:19]} Be7 {[%emt 0:00:59] Inhibits Nf6+.} 38. Ke2 {[%emt 0:00:43]} Nf5 {[%emt 0:01:32]} 39. Kd3 {[%emt 0:05:21]} Ra8 {[%emt 0:02:56]} 40. c5 {[%emt 0:02:56]} bxc5 {[%emt 0:05:29]} 41. bxc5 {[%emt 0:51:38]} Kf8 $1 {[%emt 0:10:32]} 42. Bb2 {[%emt 0:00:00]} Ke8 $1 {[%emt 0:02:20]} 43. Bxd4 {[%emt 0:00:00]} Rd8 {[%emt 0:02:25]} 44. Rb4 {[%emt 0:00:00]} Bf8 $1 {[%emt 0:02:15]} 45. Nf6+ {[%emt 0:00:00]} Ke7 {[%emt 0:00:05]} 46. Rb7+ {[%emt 0:00:00] Weighted Error Value: White=0.02 (flawless) /Black=0.05 (flawless) .  Inaccurate:     	White=1     	Black=2      OK:         	White=24    	Black=15     Strong:       	---       	Black=4} (46. c6 $5 Rc8 (46... Nxg3 $2 {is the wrong capture.} 47. c7 $18) (46... Rxd4+ $2 47. Rxd4 Nxd4 48. c7 $18) 47. c7 (47. Rb7+ Kd6 $17) 47... Rxc7 48. Nd5+ Kd7 49. Rb8 $11) 1/2-1/2

[Event "4NCL 2023-2024"]
[Site "Daventry"]
[Date "2024.05.05"]
[Round "10.42"]
[White "Khoury, Theo"]
[Black "Waldhausen Gordon, Frederick"]
[Result "0-1"]
[ECO "C45"]
[WhiteElo "2071"]
[BlackElo "2358"]
[Annotator "TA"]
[PlyCount "112"]
[EventDate "2023.11.11"]
[EventType "team-tourn"]
[EventCountry "ENG"]
[SourceTitle "playchess.com"]
[Source "ChessBase"]
[SourceQuality "1"]
[TimeControl "40/6000+30:3000+30"]

{[%evp 14,112,-8,-17,-35,-39,-46,-36,-13,-51,0,0,41,45,36,12,65,0,0,0,0,9,0,0,0,-111,0,23,23,-6,29,9,0,0,45,52,40,38,37,64,94,72,61,0,115,100,85,-17,-19,-8,0,-7,0,0,0,-112,-29,-77,-62,-77,-56,-159,-162,-210,-217,-220,-210,-231,-229,-260,-260,-260,-272,-272,-272,-266,-286,-284,-227,-225,-232,-231,-232,-237,-229,-237,-237,-237,0,-215,-209,-302,-304,-588,-575,-765,-734,-802,-782,-769,-752]} 1. e4 {[%emt 0:00:06]} e5 {[%emt 0:00:01]} 2. Nf3 {[%emt 0:00:09]} Nc6 {[%emt 0:00:02]} 3. d4 {[%emt 0:00:05]} exd4 {[%emt 0:00:03]} 4. Nxd4 {[%emt 0:00:06]} Nf6 {[%emt 0:00:05]} 5. Nxc6 {[%emt 0:00:05]} bxc6 {[%emt 0:00:03]} 6. e5 {[%emt 0:00:06]} Qe7 {[%emt 0:00:02]} 7. Qe2 {[%emt 0:00:05]} Nd5 {[%emt 0:00:04]} 8. h4 {[%emt 0:00:02][%cal Bh2h4,Bh4h5,Bh5h6][%mdl 32]} Qe6 {[%emt 0:00:23]} 9. Nd2 {[%emt 0:00:05]} a5 {[%emt 0:00:14]} 10. Nf3 {[%emt 0:06:52]} Ba6 {[%emt 0:02:26] Black is slightly better.} 11. c4 {[%emt 0:00:18]} Qg4 {[%emt 0:03:58]} ({Black should try} 11... Bb4+ $15 12. Kd1 Nb6) 12. h5 $11 {[%emt 0:16:10]} Nf4 {[%emt 0:06:42]} 13. Bxf4 {[%emt 0:00:50]} Qxf4 {[%emt 0:00:36] [#]} 14. h6 $1 {[%emt 0:14:44]} g6 {[%emt 0:10:45]} 15. g3 {[%emt 0:09:44]} (15. Rh4 $14 Qf5 (15... Bb4+ $2 16. Kd1 $18) 16. a3) 15... Bb4+ {[%emt 0:01:10]} 16. Kd1 {[%emt 0:00:10]} Qg4 {[%emt 0:00:06][%cal Oa6c4] Strongly threatening ...Bxc4!} 17. Rh4 {[%emt 0:00:39]} Qe6 {[%emt 0:00:21]} 18. Bh3 {[%emt 0:05:07]} Qe7 {[%emt 0:00:20]} 19. Re4 {[%emt 0:06:40]} (19. a3 $11 Bc5 20. Qd2) 19... O-O-O {[%emt 0:04:07]} (19... O-O $17) 20. a3 {[%emt 0:04:02]} Bc5 {[%emt 0:00:52] [#]} 21. b4 $1 $132 {[%emt 0:03:40][%mdl 2048] White puts up resistance} Bb6 {[%emt 0:01:08][%cal Bc5b6,Bb6a5,Ba5b4][%mdl 32]} (21... Ba7 22. Ke1) 22. Rb1 {[%emt 0:06:06]} Rhe8 {[%emt 0:03:25]} 23. Nd2 {[%emt 0:08:47]} (23. bxa5 {is interesting.} f5 24. axb6 fxe4 25. Qe3) 23... axb4 {[%emt 0:03:51]} 24. axb4 {[%emt 0:00:27] And now Ra1 would win.} c5 $1 {[%emt 0:00:09]} 25. b5 {[%emt 0:02:22]} Bb7 {[%emt 0:00:05][%cal Oe7f8]} 26. Re3 {[%emt 0:00:16]} Ba5 {[%emt 0:09:29]} 27. Ra1 $1 {[%emt 0:05:38]} Bb4 {[%emt 0:00:27]} 28. Bg4 {[%emt 0:05:23]} (28. Ke1 $14) 28... f5 {[%emt 0:06:25]} (28... f6 $11) 29. Bf3 $16 {[%emt 0:01:26]} c6 {[%emt 0:00:53]} 30. Kc2 {[%emt 0:02:40]} (30. Ra7 $16) 30... Kc7 $1 $11 {[%emt 0:01:41]} 31. Nb3 {[%emt 0:03:09]} Ra8 {[%emt 0:00:53]} 32. Rxa8 {[%emt 0:01:19]} Rxa8 {[%emt 0:00:04]} 33. Kb1 {[%emt 0:00:36] Wards off Ra2. e6 is the strong threat.} Qe6 {[%emt 0:02:05]} 34. Qd3 {[%emt 0:02:19] [#]} (34. bxc6 $11 {keeps the balance.} dxc6 (34... Bxc6 35. Bxc6 Qxc6 36. e6 $11) 35. Rd3) 34... Rf8 {[%emt 0:02:54]} (34... cxb5 $1 $17 {aiming for ...Bxf3.} 35. Qd6+ Qxd6 36. exd6+ Kb6 37. Bxb7 Kxb7 38. cxb5 c4) 35. Re2 {[%emt 0:01:37]} (35. bxc6 $11 dxc6 36. Be2) 35... g5 {[%emt 0:00:52]} 36. Bg2 {[%emt 0:03:41]} g4 {[%emt 0:01:45]} 37. bxc6 {[%emt 0:02:39]} ({White should play} 37. Nd2 $15) 37... dxc6 $17 {[%emt 0:00:10][%cal Of8d8]} 38. Qd6+ {[%emt 0:00:48]} (38. Qe3 {is a better defense.} Rd8 39. Rc2 (39. Nxc5 $2 {perishes.} Qxc4 40. Rc2 Bxc5 $19)) 38... Qxd6 $19 {[%emt 0:00:04]} 39. exd6+ {[%emt 0:00:04]} Kxd6 {[%emt 0:00:07]} 40. Kc2 {[%emt 0:00:57]} Rf6 {[%emt 0:00:31][%cal Of6g6]} 41. Nc1 {[%emt 0:01:24]} Rxh6 {[%emt 0:05:31]} 42. Nd3 {[%emt 0:00:07]} Bc8 {[%emt 0:01:14]} 43. Nf4 {[%emt 0:50:30]} Bd7 {[%emt 0:01:54]} 44. Kd3 {[%emt 0:00:00]} Rh2 {[%emt 0:02:36]} 45. Ra2 {[%emt 0:00:00]} Be1 {[%emt 0:02:47]} 46. Ke2 {[%emt 0:00:00]} Bc3 {[%emt 0:00:05]} 47. Kf1 {[%emt 0:00:00]} Be5 {[%emt 0:01:02]} 48. Rd2+ {[%emt 0:00:00] [#]} Kc7 $1 {[%emt 0:00:38]} 49. Nd3 {[%emt 0:00:00]} Bd4 {[%emt 0:00:14]} 50. Nf4 {[%emt 0:00:00]} Be5 {[%emt 0:04:18]} 51. Nd3 $1 {[%emt 0:00:00][%csl LRc5,LRe5]} Bd6 {[%emt 0:00:05]} 52. Re2 {[%emt 0:00:00]} (52. Kg1 $142 Rh6 53. Ra2) 52... Rh6 {[%emt 0:01:06]} 53. Ne5 $2 {[%emt 0:00:00]} (53. Rc2) 53... Be6 {[%emt 0:01:21] White must now prevent ...Bxe5. Black is clearly winning.} 54. Ke1 {[%emt 0:00:00]} Bxe5 {[%emt 0:00:41]} 55. Rxe5 {[%emt 0:00:00]} Kd6 {[%emt 0:00:04]} (55... Bxc4 56. Rxc5 Re6+ 57. Kd2 Re2+ 58. Kc3 $17) 56. Re3 {[%emt 0:00:00]} Bxc4 {[%emt 0:00:04] Weighted Error Value: White=0.30/Black=0.22 (precise) .  Mistake:       	White=10    	Black=4      Inaccurate:     	White=2     	Black=4      OK:         	White=18    	Black=21     Best:        	White=3     	Black=4      Strong:       	White=2     	Black=2} 0-1

[Event "4NCL 2023-2024"]
[Site "Daventry"]
[Date "2024.05.05"]
[Round "10.43"]
[White "Gourlay, Iain"]
[Black "Zakarian, David"]
[Result "0-1"]
[ECO "D78"]
[WhiteElo "2310"]
[BlackElo "2293"]
[Annotator "TA"]
[PlyCount "92"]
[EventDate "2023.11.11"]
[EventType "team-tourn"]
[EventCountry "ENG"]
[SourceTitle "playchess.com"]
[Source "ChessBase"]
[SourceQuality "1"]
[TimeControl "40/6000+30:3000+30"]

{[%evp 19,92,43,57,61,81,57,45,25,25,37,28,31,34,38,37,11,11,10,7,12,10,0,0,0,0,-4,-10,-48,-42,-79,-66,-102,-91,-184,-164,-262,-262,-291,-274,-289,-282,-275,-299,-299,-307,-321,-301,-29984,-450,-367,-217,-189,-179,-571,-519,-29991,-29992,-29992,-29993,-29996,-29983,-29993,-29981,-29981,-29982,-29982,-29983,-29983,-29984,-29984,-29983,-29983,-29984,-29984,-29983]} 1. c4 {[%emt 0:11:18]} Nf6 {[%emt 0:00:18]} 2. g3 {[%emt 0:00:51]} g6 {[%emt 0:00:10]} 3. Bg2 {[%emt 0:00:15]} Bg7 {[%emt 0:00:06]} 4. Nf3 {[%emt 0:00:24]} O-O {[%emt 0:00:14]} 5. O-O {[%emt 0:00:52]} c6 {[%emt 0:00:11]} 6. b3 {[%emt 0:02:07]} Ne4 {[%emt 0:02:43]} 7. d4 {[%emt 0:00:16]} d5 {[%emt 0:00:07]} 8. Bb2 {[%emt 0:00:39]} Be6 {[%emt 0:05:57]} 9. Nbd2 {[%emt 0:11:46]} Nxd2 {[%emt 0:05:33]} 10. Qxd2 {[%emt 0:08:23]} h6 {[%emt 0:14:24]} 11. Ne5 {[%emt 0:12:23]} Nd7 {[%emt 0:04:32]} 12. cxd5 {[%emt 0:01:42]} cxd5 {[%emt 0:01:10]} 13. Qe3 {[%emt 0:11:42][%cal Oe5g6] White is slightly better.} Nxe5 {[%emt 0:05:02]} 14. dxe5 {[%emt 0:00:14]} Qa5 {[%emt 0:00:35]} 15. Rfd1 {[%emt 0:03:00]} Rac8 {[%emt 0:05:42]} 16. Qd2 {[%emt 0:03:47] Inhibits Rc2.} Qa6 {[%emt 0:10:28]} 17. Bxd5 {[%emt 0:15:34]} Bxd5 {[%emt 0:07:01]} 18. Qxd5 {[%emt 0:00:09]} Qxe2 {[%emt 0:00:24]} 19. Rd2 {[%emt 0:00:58]} Qa6 {[%emt 0:00:29]} 20. e6 {[%emt 0:06:29]} Qxe6 {[%emt 0:12:57]} (20... fxe6 {with more complications.} 21. Qd7 Bxb2 22. Rxb2 Kf7) 21. Bxg7 {[%emt 0:06:41]} Kxg7 {[%emt 0:09:15]} (21... Qxd5 22. Rxd5 Kxg7 23. Rd7) 22. Qxe6 {[%emt 0:04:23]} fxe6 $11 {[%emt 0:00:18][%mdl 4096] Endgame. KRR-KRR} 23. Rd7 {[%emt 0:00:09]} Rc2 {[%emt 0:01:30]} 24. f4 {[%emt 0:04:39][%cal Oa1f1]} Kf6 {[%emt 0:04:06] White is now going downhill.} 25. a4 {[%emt 0:00:50]} a5 {[%emt 0:04:15]} 26. Rxb7 {[%emt 0:01:52] [#]} (26. Re1 $17) 26... Rd8 $1 $19 {[%emt 0:00:16]} 27. Rb5 {[%emt 0:00:10]} (27. b4 $142) 27... Rdd2 {[%emt 0:01:18]} 28. Rxa5 {[%emt 0:01:10] [#]} Rg2+ $1 {[%emt 0:00:15]} 29. Kh1 {[%emt 0:00:23]} Rxh2+ {[%emt 0:00:05]} 30. Kg1 {[%emt 0:00:03]} Rcg2+ {[%emt 0:02:13]} 31. Kf1 {[%emt 0:00:08]} Rxg3 {[%emt 0:00:51]} 32. b4 {[%emt 0:00:19]} h5 {[%emt 0:00:41] ...h4 is the strong threat.} 33. b5 $2 {[%emt 0:01:12]} (33. Rg5 $19 Rh1+ (33... Rxg5 $2 34. fxg5+ Kxg5 35. Re1 $19) 34. Kf2 Rxa1 35. Rxg3 Ra2+ (35... Rxa4 $2 36. Rb3 $19) 36. Kf1 Rxa4 37. Rb3) 33... Rb3 {[%emt 0:01:18]} (33... h4 $142 34. b6 Rh1+ 35. Kf2 Rxa1 36. Re5 Ra2+ (36... Rxa4 $2 37. Re2 $19) 37. Re2 Rxe2+ (37... Rxa4 $2 38. f5 $19) 38. Kxe2 h3 (38... Rg2+ 39. Kf3 Rg3+ 40. Kf2 Rb3 41. b7 Rxb7 42. a5 h3 43. a6 Rb2+ 44. Kg1 Kf5 45. a7 Ra2 46. a8=B Rxa8 47. Kf2 h2 48. Ke3 h1=Q 49. Kd3 Ra3+ 50. Kc4 Qd5+ 51. Kb4 Rb3+ 52. Ka4 Qb5#) (38... Rb3 39. Kf1 h3 40. Kg1 Kf5 41. b7 Kxf4 42. Kf2 h2 43. Ke2 h1=Q 44. b8=R Qg2+ 45. Kd1 Rxb8 46. Kc1 Rh8 47. Kd1 Rh1#) 39. Kf2 Rb3 (39... Rg2+ 40. Kf1 Rb2 41. Kg1 Kf5 42. b7 Rxb7 43. Kf2 Kxf4 44. Ke2 h2 45. Kd3 h1=Q 46. Kd2 Qg2+ 47. Kc1 Ke3 48. Kd1 Qd2#) 40. a5 Kf5 41. b7 Rxb7 (41... Kxf4 42. Ke2 h2 43. Kd2 h1=Q 44. b8=R Rxb8 45. Kc3 Qc1+ 46. Kd3 Rd8+ 47. Ke2 Rd2#) 42. Kg3 Rb3+ 43. Kh2 Kxf4 44. a6 Rb2+ (44... Ra3 45. Kg1 Kg3 46. Kf1 h2 47. Ke2 h1=Q 48. Kd2 Qh2+ 49. Ke1 Ra1#) 45. Kxh3 g5 (45... Rb3+ 46. Kg2 Ra3 47. a7 Rxa7 48. Kf2 Ra2+ 49. Ke1 g5 50. Kd1 g4 51. Kc1 g3 52. Kb1 Rf2 53. Kc1 g2 54. Kd1 g1=Q#) 46. a7 g4+ 47. Kh4 Rh2#) 34. Kg1 {[%emt 0:00:28]} Rhb2 {[%emt 0:04:48]} (34... Rbb2 $142 {( -> ...h4)} 35. b6 h4) 35. Ra8 {[%emt 0:00:20]} Kf5 {[%emt 0:01:12] Hoping for ...Rg3+.} 36. Rf8+ $2 {[%emt 0:00:47]} (36. Rc8) 36... Kg4 {[%emt 0:00:26]} 37. Rg8 {[%emt 0:01:10]} (37. Rc8 $19 e5 (37... Kxf4 $2 38. Rc4+ Kg3 39. Rac1 $17) 38. f5 gxf5 39. Kf1) 37... Rg3+ {[%emt 0:00:14] Black mates.} ({And not} 37... Kxf4 38. Rxg6 Kf5 39. Rg7 $11 (39. Rg2 e5 $15)) 38. Kf1 {[%emt 0:00:28]} Kh3 {[%emt 0:00:16]} ({Not} 38... Kxf4 39. Rf8+ Kg5 40. a5 $17) 39. Re1 {[%emt 0:00:57]} Rgg2 {[%emt 0:02:38][%csl Gg2][%cal Rb2f2]} 40. Rxe6 {[%emt 0:00:58]} Kh2 {[%emt 0:03:55][%csl Gh2][%cal Rg2g1]} 41. Rgxg6 {[%emt 0:50:24]} Rb1+ {[%emt 0:50:09]} 42. Re1 {[%emt 0:00:06]} Rxe1+ {[%emt 0:00:06]} 43. Kxe1 {[%emt 0:00:04]} Rxg6 {[%emt 0:00:04]} 44. a5 {[%emt 0:00:20]} Rg1+ {[%emt 0:00:34]} 45. Kd2 {[%emt 0:00:12]} Rb1 {[%emt 0:00:10]} 46. b6 {[%emt 0:00:06]} Rb5 {[%emt 0:00:28] Weighted Error Value: White=0.65/Black=0.27 (precise) .  Mistake:       	White=5     	Black=1      Inaccurate:     	White=4     	---        OK:         	White=6     	Black=7      Best:        	White=1     	Black=8      Strong:       	---       	Black=2} 0-1